{"text_format":"1","workbook":"xlsx","n_sheets":13,"sheets":["Guia de Herramientas","Visión General","Resultados","Legislación y Normativa","Organización","Seguridad Física","Seguridad de Instalaciones","Personal","Formación","Infraestructura","Finanzas","Adquisición de Material","Imprimir en PDF"],"not_rendered":{"charts":1,"images":48,"macros":1,"external_links":0,"defined_names":2,"comments":0,"pivot_tables":0},"unopened":[],"bounds":{"document_bytes":16777216,"sheet_cells":100000,"rows_first":2000,"rows_last":500,"rows_between":2000,"halvings":0,"cell_chars":16384,"cell_head_chars":4096},"cells_cut":0,"cells_raw":0,"read":"whole","date_system":"1900"}

{"sheet":"Guia de Herramientas","index":0,"n_rows":95,"n_cols":16,"rows_kept":95,"cut":false,"hidden":false,"merged":[[84,1,84,14],[5,1,5,5],[4,1,4,4],[3,1,3,6],[48,1,48,4],[61,1,61,9]]}
[null,null,null,null,null,null,"  "]
[]
[]
[null,"https://eur-lex.europa.eu/eli/dec/2022/2275/oj/eng",null,null,null,null,null,"EU Council Decision CFSP 2022/2275"]
[null,"https://aamvs-amat.gichd.org/",null,null,null,null,null,"GICHD/AMAT link for information on AAMVS"]
[null,"Definition of Small Arms and Light Weapons (SALW)",null,null,null,null,null,"UNODC link on Small Arms and Light Weapons (paras 4(a) and 4(b))"]
[]
[]
[]
[]
[]
[]
[]
[]
[]
[]
[]
[]
[]
[]
[]
[]
[]
[]
[]
[]
[]
[]
[]
[]
[]
[]
[]
[]
[]
[]
[]
[]
[]
[]
[]
[]
[]
[]
[]
[]
[]
[]
[null,"EU Council Decision (CFSP) 2020/979"]
[]
[]
[]
[]
[]
[]
[]
[]
[]
[]
[]
[]
[null,"https://support.microsoft.com/en-us/office/enable-or-disable-macros-in-microsoft-365-files"]
[]
[]
[]
[]
[]
[]
[]
[]
[]
[]
[]
[]
[]
[]
[]
[]
[]
[]
[]
[]
[]
[]
[null,"https://support.microsoft.com/en-gb/office/enable-or-disable-macros-in-microsoft-365-files-12b036fd-d140-4e74-b45e-16fed1a7e5c6",null,null,null,null,null,null,null,null,null,null,null,null,null,"Enlace a las páginas de ayuda de Microsoft"]
[null,"https://support.microsoft.com/en-gb/office/enable-or-disable-activex-settings-in-office-files-f1303e08-a3f8-41c5-a17e-b0b8898743ed",null,null,null,null,null,null,null,null,null,null,null,null,null,"Enlace a las páginas de ayuda de Microsoft"]
[null,"Vídeo de YouTube sobre cómo activar macros y contenido activo en Excel",null,null,null,null,null,null,"Guía paso a paso para activar el contenido activo en Excel"]
[null,"https://eur-lex.europa.eu/eli/dec/2022/2275/oj/eng",null,null,null,null,null,"Decisión PESC 2022/2275 del Consejo de la UE"]
[null,"https://aamvs-amat.gichd.org/",null,null,null,null,null,"Enlace GICHD/AMAT para información sobre AAMVS"]
[null,"Definición de armas pequeñas y ligeras (APAL)",null,null,null,null,null,"Enlace de la ONUDD sobre armas pequeñas y ligeras"]
[]
[null,"Notas a pie de página:"]
[null,"1. Las APAL son armas portátiles que pueden lanzar un proyectil. Las APAL incluyen pistolas, granadas, rifles, subfusiles y rifles de asalto. En el caso de los sistemas portátiles de defensa antiaérea (MANPADS), se consideran armas ligeras y entran en la categoría de APAL."]
[null,"2. Decisión PESC 2022/2275 del Consejo de la UE de 18 de noviembre de 2022 en apoyo del desarrollo de un sistema de validación de la gestión de armas y municiones (AAMVS) reconocido internacionalmente para prevenir la proliferación ilícita."]
[null,"3. A continuación figura el enlace al sitio web de la AAMVS."]

{"sheet":"Visión General","index":1,"n_rows":19,"n_cols":3,"rows_kept":19,"cut":false,"hidden":false,"merged":[]}
[]
[]
[]
[]
[null,"Usuario Final:","Indique aquí el usuario final (es decir, el organismo gubernamental, como el ejército o la policía) para el que se necesitan las armas/municiones."]
[]
[null,"Fecha de finalización:","Introduzca la fecha en la que se completó este informe de autoevaluación."]
[]
[null,"Assesor(es):","Indique el(los) nombre(s) y el(los) cargo(s) de la(s) persona(s) autorizada(s) a cumplimentar esta autoevaluación."]
[]
[null,"Fecha de publicación:","Introduzca la fecha en la que se autorizó la entrega de este informe de autoevaluación a los destinatarios previstos."]
[]
[]
[null,"Lanzamiento oficial:","Indique el nombre y el cargo de la persona que ha autorizado la divulgación de este informe de autoevaluación a los destinatarios previstos. "]
[]
[null,"Convertir a PDF:","Las fichas individuales pueden imprimirse utilizando la funcionalidad presente en Excel. Seleccionando la opción de impresión \"Microsoft Imprimir en PDF\" es posible guardar la ficha en un archivo PDF. Se recomienda seleccionar la opción de impresión \"Ajustar todas las columnas en una página\". Encontrará instrucciones detalladas en la pestaña \"Imprimir en PDF\"."]
[]
[null,"AAMVS Tool Version 9.2"]
[null," "]

{"sheet":"Resultados","index":2,"n_rows":17,"n_cols":7,"rows_kept":17,"cut":false,"hidden":false,"merged":[]}
[]
[]
[]
[null,null,null,null,null,"Functional Section","Assessed Level"]
[]
[null,null,null,null,null,"Materiel Acquisition",{"$f":"C17","v":1}]
[null,"Area Funcional","Nivel Evaluado",null,null,"Finance",{"$f":"C16","v":1}]
[null,null,null,null,null,"Infrastructure",{"$f":"C15","v":1}]
[null,"Legislación y Normativa",{"$f":"'Legislación y Normativa'!F5","v":2.2000000000000002},null,null,"Training",{"$f":"C14","v":1}]
[null,"Organización",{"$f":"Organización!F5","v":1},null,null,"Personnel",{"$f":"C13","v":1}]
[null,"Seguridad física",{"$f":"'Seguridad Física'!F5","v":1},null,null,"Security",{"$f":"C12","v":1}]
[null,"Seguridad de las instalaciones",{"$f":"'Seguridad de Instalaciones'!F5","v":1},null,null,"Safety",{"$f":"C11","v":1}]
[null,"Personal",{"$f":"Personal!F5","v":1},null,null,"Organization",{"$f":"C10","v":1}]
[null,"Entrenamiento",{"$f":"Formación!F5","v":1},null,null,"Legislation & Regulations",{"$f":"C9","v":2.2000000000000002}]
[null,"Infraestructura",{"$f":"Infraestructura!F5","v":1}]
[null,"Finanzas",{"$f":"Finanzas!F5","v":1}]
[null,"Adquisición de material",{"$f":"'Adquisición de Material'!F5","v":1}]

{"sheet":"Legislación y Normativa","index":3,"n_rows":93,"n_cols":18,"rows_kept":93,"cut":false,"hidden":false,"merged":[[14,1,14,6],[13,8,13,14],[14,8,14,14],[13,1,13,5],[15,1,15,9]]}
[]
[]
[null,"Legislación y Normativa"]
[]
[null,"Nivel de Evaluación calculado",null,null,null,{"$f":"AVERAGE(R23:R93)","v":2.2000000000000002}]
[]
[]
[]
[]
[]
[]
[]
[null,"Referencias:"]
[null,"IATG-01.40 Glosario de términos, definiciones y abreviaturas",null,null,null,null,null,null,"MOSAIC-03.20 Controles nacionales de las transferencias internacionales de APAL"]
[null,"IATG 01.50 Sistema de clasificación de explosivos de la ONU",null,null,null,null,null,null,"MOSAIC-03.40 Mecanismos nacionales de coordinación"]
[null,"MOSAIC-03.10 Controles nacionales sobre la fabricación de armas pequeñas y ligeras"]
[]
[]
[]
[]
[]
[]
[null,null,null,null,null,null,null,null,null,null,null,null,null,null,null,null,null,3]
[]
[]
[]
[]
[]
[]
[]
[]
[]
[]
[]
[]
[]
[]
[]
[]
[null,null,null,null,null,null,null,null,null,null,null,null,null,null,null,null,null,1]
[]
[]
[]
[]
[]
[]
[]
[]
[]
[]
[]
[]
[]
[]
[]
[null,null,null,null,null,null,null,null,null,null,null,null,null,null,null,null,null,3]
[]
[]
[]
[]
[]
[]
[]
[]
[]
[]
[]
[]
[]
[]
[]
[]
[]
[]
[]
[null,null,null,null,null,null,null,null,null,null,null,null,null,null,null,null,null,3]
[]
[]
[]
[]
[]
[]
[]
[]
[]
[]
[]
[]
[]
[]
[]
[]
[null,null,null,null,null,null,null,null,null,null,null,null,null,null,null,null,null,1]

{"sheet":"Organización","index":4,"n_rows":34,"n_cols":18,"rows_kept":34,"cut":false,"hidden":false,"merged":[[14,1,14,4]]}
[]
[]
[null,"Organización"]
[]
[null,"Nivel de Evaluación calculado:",null,null,null,{"$f":"AVERAGE(R22:R34)","v":1}]
[]
[]
[]
[]
[]
[]
[]
[]
[null,"References:"]
[null,"IATG-01.35 Capacidades organizativas"]
[]
[]
[]
[]
[]
[]
[null,null,null,null,null,null,null,null,null,null,null,null,null,null,null,null,null,1]
[]
[]
[]
[]
[]
[]
[]
[]
[]
[]
[]
[null,null,null,null,null,null,null,null,null,null,null,null,null,null,null,null,null,1]

{"sheet":"Seguridad Física","index":5,"n_rows":102,"n_cols":18,"rows_kept":102,"cut":false,"hidden":false,"merged":[[16,8,16,14],[17,8,17,14],[18,8,18,13],[19,8,19,13],[15,8,15,14],[20,1,20,3],[15,1,15,4],[16,1,16,6],[17,1,17,7],[19,1,19,5],[18,1,18,5]]}
[]
[]
[null,"Seguridad Física"]
[]
[null,"Nivel de Evaluación calculado:",null,null,null,{"$f":"AVERAGE(R28:R102)","v":1}]
[]
[]
[]
[]
[]
[]
[]
[]
[]
[null,"Referencias:"]
[null,"IATG-01.30 Asesoramiento para el desarrollo de políticas",null,null,null,null,null,null,"IATG-02.30 Autorización de instalaciones explosivas"]
[null,"IATG-02.10 Introducción a los principios y procesos de gestión de riesgos",null,null,null,null,null,null,"MOSAIC-03.40 Mecanismos nacionales de coordinación del control de APAL"]
[null,"IATG-02.10 Introduction to risk management principles and processes",null,null,null,null,null,null,"MOSAIC-04.40 Seguimiento, evaluación y elaboración de informes"]
[null,"IATG-02.20 Cantidad y distancias de separación",null,null,null,null,null,null,"MOSAIC-05.40 Recogida de APAL ilícitas y no deseadas"]
[null,"IATG-02.30 Autorización de instalaciones explosivas",null,null,null,null,null,null,"MOSAIC-05.50 Destrucción: Armas"]
[null,"IATG-02.30 Autorización de instalaciones explosivas"]
[]
[]
[]
[]
[]
[]
[null,null,null,null,null,null,null,null,null,null,null,null,null,null,null,null,null,1]
[]
[]
[null,null,null,null,null,null,null,null,null,null,null,null,null,null,null,null,null," "]
[]
[]
[]
[]
[]
[]
[]
[]
[]
[]
[]
[null,null,null,null,null,null,null,null,null,null,null,null,null,null,null,null,null,1]
[]
[]
[]
[]
[null,null,null,null,null,null,null,null,null,null,null,null,null,null,null,null,null,1]
[]
[]
[]
[]
[null,null,null,null,null,null,null,null,null,null,null,null,null,null,null,null,null,1]
[]
[]
[]
[]
[]
[]
[]
[]
[]
[]
[]
[null,null,null,null,null,null,null,null,null,null,null,null,null,null,null,null,null,1]
[]
[]
[]
[]
[]
[]
[]
[null,null,null,null,null,null,null,null,null,null,null,null,null,null,null,null,null,1]
[]
[]
[]
[]
[]
[]
[]
[]
[]
[null,null,null,null,null,null,null,null,null,null,null,null,null,null,null,null,null,1]
[]
[]
[]
[]
[]
[]
[]
[]
[]
[]
[]
[]
[]
[]
[]
[]
[]
[]
[null,null,null,null,null,null,null,null,null,null,null,null,null,null,null,null,null,1]

{"sheet":"Seguridad de Instalaciones","index":6,"n_rows":113,"n_cols":18,"rows_kept":113,"cut":false,"hidden":false,"merged":[[15,8,15,12],[14,1,14,4],[15,1,15,5],[14,8,14,12],[16,1,16,5]]}
[]
[]
[null,"Seguridad de Instalaciones"]
[]
[null,"Nivel de Evaluación calculado:",null,null,null,{"$f":"AVERAGE(R26:R113)","v":1}]
[]
[]
[]
[]
[]
[]
[]
[]
[null,"Referencias:"]
[null,"IATG-03.10 Gestión de inventarios",null,null,null,null,null,null,"MOSAIC-05.20 Gestión de arsenales: Armas"]
[null,"IATG-09.10 Principios y sistemas de seguridad",null,null,null,null,null,null,"MOSAIC-05.30 Marcado y mantenimiento de registros"]
[null,"MOSAIC-05.10 Realización de encuestas sobre APAL"]
[]
[]
[]
[]
[]
[]
[]
[]
[null,null,null,null,null,null,null,null,null,null,null,null,null,null,null,null,null,1]
[]
[]
[]
[]
[]
[]
[]
[]
[]
[]
[]
[]
[]
[]
[]
[]
[]
[]
[null,null,null,null,null,null,null,null,null,null,null,null,null,null,null,null,null,1]
[]
[]
[]
[]
[]
[]
[]
[]
[]
[]
[]
[]
[null,null,null,null,null,null,null,null,null,null,null,null,null,null,null,null,null,1]
[]
[]
[]
[]
[]
[]
[]
[]
[null,null,null,null,null,null,null,null,null,null,null,null,null,null,null,null,null,1]
[]
[]
[]
[]
[]
[]
[]
[]
[]
[]
[]
[null,null,null,null,null,null,null,null,null,null,null,null,null,null,null,null,null,1]
[]
[]
[]
[]
[]
[]
[]
[]
[]
[]
[]
[]
[]
[]
[]
[]
[]
[null,null,null,null,null,null,null,null,null,null,null,null,null,null,null,null,null,1]
[]
[]
[]
[]
[]
[]
[]
[]
[null,null,null,null,null,null,null,null,null,null,null,null,null,null,null,null,null,1]
[]
[]
[]
[]
[]
[]
[null,null,null,null,null,null,null,null,null,null,null,null,null,null,null,null,null,1]

{"sheet":"Personal","index":7,"n_rows":35,"n_cols":18,"rows_kept":35,"cut":false,"hidden":false,"merged":[[14,1,14,4]]}
[]
[]
[null,"Personal"]
[]
[null,"Nivel de Evaluación calculado:",null,null,null,{"$f":"AVERAGE(R22:R35)","v":1}]
[]
[]
[]
[]
[]
[]
[]
[]
[null,"Referencias:"]
[null,"IATG-01.90 Competencias del personal"]
[]
[]
[]
[]
[]
[]
[null,null,null,null,null,null,null,null,null,null,null,null,null,null,null,null,null,1]
[]
[]
[]
[]
[]
[]
[]
[]
[]
[]
[]
[]
[null,null,null,null,null,null,null,null,null,null,null,null,null,null,null,null,null,1]

{"sheet":"Formación","index":8,"n_rows":37,"n_cols":18,"rows_kept":37,"cut":false,"hidden":false,"merged":[[15,1,15,4],[14,1,14,4]]}
[]
[]
[null,"Formación"]
[]
[null,"Nivel de Evaluación calculado:",null,null,null,{"$f":"AVERAGE(R24:R37)","v":1}]
[]
[]
[]
[]
[]
[]
[]
[]
[null,"Referencias:"]
[null,"IATG-01.35 Capacidades organizativas"]
[null,"IATG-01.90 Competencias del personal"]
[]
[]
[]
[]
[]
[]
[]
[null,null,null,null,null,null,null,null,null,null,null,null,null,null,null,null,null,1]
[]
[]
[]
[]
[]
[]
[]
[]
[]
[]
[]
[]
[null,null,null,null,null,null,null,null,null,null,null,null,null,null,null,null,null,1]

{"sheet":"Infraestructura","index":9,"n_rows":75,"n_cols":18,"rows_kept":75,"cut":false,"hidden":false,"merged":[[16,1,16,4],[17,8,17,12],[16,8,16,12],[18,1,18,4],[17,1,17,5]]}
[]
[]
[null,"Infraestructura"]
[]
[null,"Nivel de Evaluación calculado:",null,null,null,{"$f":"AVERAGE(R27:R75)","v":1}]
[]
[]
[]
[]
[]
[]
[]
[]
[]
[]
[null,"Referencias:"]
[null,"IATG-05.20 Instalaciones de explosivos en edificios",null,null,null,null,null,null,"IATG-07.30 Operaciones de tratamiento de municiones"]
[null,"IATG-05.40 Normas de seguridad de las instalaciones eléctricas",null,null,null,null,null,null,"MOSAIC-05.20 Gestión de arsenales: armas"]
[null,"IATG-07.20 Munición de inspección"]
[]
[]
[]
[]
[]
[]
[]
[null,null,null,null,null,null,null,null,null,null,null,null,null,null,null,null,null,1]
[]
[]
[]
[]
[]
[]
[]
[]
[]
[]
[]
[]
[]
[]
[]
[]
[]
[null,null,null,null,null,null,null,null,null,null,null,null,null,null,null,null,null,1]
[]
[]
[]
[]
[]
[]
[]
[]
[null,null,null,null,null,null,null,null,null,null,null,null,null,null,null,null,null,1]
[]
[]
[]
[]
[]
[]
[]
[]
[]
[]
[null,null,null,null,null,null,null,null,null,null,null,null,null,null,null,null,null,1]
[]
[]
[]
[]
[]
[]
[]
[]
[]
[null,null,null,null,null,null,null,null,null,null,null,null,null,null,null,null,null,1]

{"sheet":"Finanzas","index":10,"n_rows":35,"n_cols":18,"rows_kept":35,"cut":false,"hidden":false,"merged":[[14,1,14,4],[15,1,15,5]]}
[]
[]
[null,"Finanzas"]
[]
[null,"Nivel de Evaluación calculado:",null,null,null,{"$f":"AVERAGE(R24:R35)","v":1}]
[]
[]
[]
[]
[]
[]
[]
[]
[null,"Referencias:"]
[null,"IATG-03.10 Gestión de inventarios"]
[null,"MOSAIC-05.20 Gestión de arsenales: Armas"]
[]
[]
[]
[]
[]
[]
[]
[null,null,null,null,null,null,null,null,null,null,null,null,null,null,null,null,null,1]
[]
[]
[]
[]
[]
[]
[]
[]
[]
[]
[null,null,null,null,null,null,null,null,null,null,null,null,null,null,null,null,null,1]

{"sheet":"Adquisición de Material","index":11,"n_rows":74,"n_cols":18,"rows_kept":74,"cut":false,"hidden":false,"merged":[[19,1,19,4]]}
[]
[]
[null,"Adquisición de Material"]
[]
[null,"Nivel de Evaluación calculado:",null,null,null,{"$f":"AVERAGE(R28:R74)","v":1}]
[]
[]
[]
[]
[]
[]
[]
[]
[]
[]
[]
[]
[]
[]
[null,"IATG-01.35 Capacidades organizativas"]
[]
[]
[]
[]
[]
[]
[]
[null,null,null,null,null,null,null,null,null,null,null,null,null,null,null,null,null,1]
[]
[]
[]
[]
[]
[]
[]
[]
[]
[]
[]
[]
[]
[]
[]
[]
[]
[null,null,null,null,null,null,null,null,null,null,null,null,null,null,null,null,null,1]
[]
[]
[]
[]
[]
[]
[]
[]
[]
[]
[]
[null,null,null,null,null,null," "]
[]
[]
[]
[]
[null,null,null,null,null,null,null,null,null,null,null,null,null,null,null,null,null,1]
[]
[]
[]
[]
[]
[]
[]
[]
[]
[]
[null,null,null,null,null,null,null,null,null,null,null,null,null,null,null,null,null,1]

{"sheet":"Imprimir en PDF","index":12,"n_rows":54,"n_cols":17,"rows_kept":54,"cut":false,"hidden":false,"merged":[]}
[]
[]
[]
[null,"1. Follow the simple instructions below to print the completed document to PDF format:"]
[null,"·         In the top ribbon, select Page Layout"]
[null,"·         In the Orientation panel, press the small down arrow"]
[null,"·         In the dropdown menu, select Portrait"]
[null,"·         Stay in Page Layout and now press the small down arrow in the Margins panel"]
[null,"·         In the dropdown menu, select Customs Margins"]
[null,"·         Tick the Horizontally and Vertically boxes"]
[null,"·         Press OK"]
[null,"·         Return to top ribbon and press File"]
[null,"·         Select Print"]
[null,"·         Open the Printer panel and select Microsoft print to PDF"]
[null,"·         Then move down to the Settings panel on the Print page and press the small arrow"]
[null,"·         From the dropdown menu select ‘Print Entire Workbook’."]
[null,"·         Then move to the bottom panel on the Print page and press the small arrow"]
[null,"·         From the dropdown menu select ‘Fit all Columns on One Page’"]
[null,"·         Finally press Print"]
[null,"For further help on printing, see the diagrammatic guide below:"]
[]
[null,"2. Follow the simple instructions below to save the completed document in PDF format:"]
[null,"·         In the top ribbon press File",null,null,null,null,null,null,null,null,null,null,null,null,null,null,{"$error":"#VALUE!"}]
[null,"·         Select Export"]
[null,"·         Double-click on Create PDF/XPS Document"]
[null,"·         Select the folder into which the document is to be saved"]
[null,"·         Click on the Options window"]
[null,"·         Press the button ‘Entire Workbook’ and uncheck the one with ‘Ignore print areas’"]
[null,"·         Press OK"]
[null,"·         Press Publish in order to save the document in PDF format"]
[]
[]
[]
[]
[]
[]
[]
[]
[]
[]
[]
[]
[]
[]
[]
[]
[]
[]
[]
[]
[]
[]
[]
[null,null,null,null,null,null," "]